[Event "44th Chess Olympiad Open 2022"]
[Site "Chennai"]
[Date "2022.07.31"]
[Round "3.22"]
[White "Cu Hor, Winston Darwin"]
[Black "Indjic, Aleksandar"]
[Result "0-1"]
[WhiteElo "2328"]
[BlackElo "2620"]
[Annotator "RC"]
[PlyCount "169"]
[EventDate "2022.??.??"]
[TimeControl "60"]

1. Nf3 {[%emt 0:00:07]} d5 {[%emt 0:01:19]} 2. c4 {[%emt 0:03:25]} d4 {[%emt 0:
00:00]} 3. g3 {[%emt 0:00:15]} Nc6 {[%emt 0:00:23]} 4. Bg2 {[%emt 0:00:16]} e5
{[%emt 0:00:08]} 5. d3 {[%emt 0:00:19]} Bb4+ {[%emt 0:00:39]} 6. Bd2 {[%emt 0:
00:00]} a5 {[%emt 0:00:41]} 7. O-O {[%emt 0:00:15]} Nf6 {[%emt 0:00:20]} 8. Na3
{[%emt 0:00:39]} O-O {[%emt 0:01:14]} 9. Nc2 {[%emt 0:01:20]} Bd6 {[%emt 0:00:
00]} 10. a3 {[%emt 0:06:30]} a4 {[%emt 0:04:31]} 11. Nb4 {[%emt 0:02:31]} Bd7 {
[%emt 0:00:00]} 12. Bg5 {[%emt 0:09:32]} h6 {[%emt 0:00:00]} 13. Bxf6 {[%emt 0:
00:00]} Qxf6 {[%emt 0:00:00]} 14. Nd5 {[%emt 0:00:16]} Qd8 {[%emt 0:00:00]} 15.
Nd2 {[%emt 0:01:45]} f5 {[%emt 0:10:15]} 16. Qc2 {[%emt 0:10:28]} Bc5 {[%emt 0:
00:00]} 17. b4 {[%emt 0:05:57]} axb3 {[%emt 0:01:03]} 18. Nxb3 {[%emt 0:00:42]}
Bxa3 {[%emt 0:14:43]} 19. Ra2 {[%emt 0:00:37]} Nb4 {[%emt 0:00:07]} 20. Nxb4 {
[%emt 0:00:15]} Bxb4 {[%emt 0:00:07]} 21. Bxb7 {[%emt 0:00:15]} Rxa2 {[%emt 0:
00:00]} 22. Bd5+ {[%emt 0:00:13]} Kh7 {[%emt 0:00:34]} 23. Qxa2 {[%emt 0:00:15]
} c6 {[%emt 0:02:37]} 24. Bg2 {[%emt 0:07:56]} Qc7 {[%emt 0:00:59]} 25. e3 {
[%emt 0:10:09]} dxe3 {[%emt 0:02:50]} 26. fxe3 {[%emt 0:00:00]} Qb6 {[%emt 0:
00:00]} 27. d4 {[%emt 0:10:22]} exd4 {[%emt 0:04:01]} 28. Nxd4 {[%emt 0:04:03]}
c5 {[%emt 0:16:22]} 29. Ne2 {[%emt 0:06:47]} Qe6 {[%emt 0:00:00]} 30. e4 {
[%emt 0:00:46]} Bb5 {[%emt 0:01:09]} 31. Nf4 {[%emt 0:03:11]} Qxc4 {[%emt 0:00:
00]} 32. Qxc4 {[%emt 0:00:14]} Bxc4 {[%emt 0:00:15]} 33. Rc1 {[%emt 0:00:14]}
Bf7 {[%emt 0:00:08]} 34. exf5 {[%emt 0:00:31]} Bd2 {[%emt 0:00:06]} 35. Rc2 {
[%emt 0:04:39]} Be3+ {[%emt 0:02:59]} 36. Kh1 {[%emt 0:03:38]} Rd8 {[%emt 0:00:
00]} 37. Bf1 {[%emt 0:01:18]} Be8 {[%emt 0:03:57]} 38. Kg2 {[%emt 0:02:09]}
Bc6+ {[%emt 0:00:32]} 39. Kh3 {[%emt 0:00:27]} Be4 {[%emt 0:00:13]} 40. Re2 {
[%emt 0:01:31]} Bxf5+ {[%emt 0:00:07]} 41. g4 {[%emt 0:30:18]} Bxg4+ {[%emt 0:
00:00]} 42. Kxg4 {[%emt 0:00:00]} Bxf4 {[%emt 0:00:00]} 43. h4 {[%emt 0:00:00]}
Rd4 {[%emt 0:00:00]} 44. Bg2 {[%emt 0:00:00]} Bd6+ {[%emt 0:00:00]} 45. Be4+ {
[%emt 0:00:00]} Kg8 {[%emt 0:00:00]} 46. h5 {[%emt 0:00:00]} Kf7 {[%emt 0:00:
00]} 47. Kf5 {[%emt 0:00:00]} Rd1 {[%emt 0:00:00]} 48. Bg2 {[%emt 0:00:00]} Rd4
{[%emt 0:00:00]} 49. Be4 {[%emt 0:00:00]} Rd1 {[%emt 0:00:00]} 50. Bg2 {
[%emt 0:00:00]} Be7 {[%emt 0:02:01]} 51. Ra2 {[%emt 0:00:00]} Re1 {[%emt 0:00:
00]} 52. Ra8 {[%emt 0:00:13]} Bf6 {[%emt 0:00:00]} 53. Ra7+ {[%emt 0:04:54]}
Ke8 {[%emt 0:00:00]} 54. Be4 {[%emt 0:00:10]} Kd8 {[%emt 0:00:17]} 55. Rb7 {
[%emt 0:00:26]} c4 {[%emt 0:00:35]} 56. Rb4 {[%emt 0:00:41]} c3 {[%emt 0:00:16]
} 57. Rc4 {[%emt 0:00:34]} Kd7 {[%emt 0:00:30]} 58. Kf4 {[%emt 0:00:14]} Rg1 {
[%emt 0:03:25]} 59. Kf3 {[%emt 0:00:27]} Kd6 {[%emt 0:06:32]} 60. Bg6 {[%emt 0:
00:00]} Re1 {[%emt 0:02:17]} 61. Be4 {[%emt 0:00:16]} Rh1 {[%emt 0:03:58]} 62.
Bg6 {[%emt 0:00:19]} Rh3+ {[%emt 0:00:44]} 63. Ke2 {[%emt 0:00:20]} Be5 {
[%emt 0:00:10]} 64. Rc8 {[%emt 0:00:23]} Bf4 {[%emt 0:03:39]} 65. Rc4 {[%emt 0:
00:00]} Bg5 {[%emt 0:01:26]} 66. Rc8 {[%emt 0:00:11]} Ke5 {[%emt 0:00:42]} 67.
Rc4 {[%emt 0:00:09]} Bf6 {[%emt 0:00:52]} 68. Kf2 {[%emt 0:00:35]} Kd5 {
[%emt 0:02:17]} 69. Bf7+ {[%emt 0:00:05]} Kd6 {[%emt 0:00:03]} 70. Bg6 {
[%emt 0:00:11]} Rh1 {[%emt 0:00:39]} 71. Ke2 {[%emt 0:00:35]} Rg1 {[%emt 0:00:
00]} 72. Kf3 {[%emt 0:00:14]} Rg5 {[%emt 0:00:28]} 73. Ke3 {[%emt 0:00:36]} Ke6
{[%emt 0:01:12]} 74. Rc6+ {[%emt 0:00:42]} Kd7 {[%emt 0:01:45]} 75. Rc4 {
[%emt 0:00:04]} Be5 {[%emt 0:00:50]} 76. Kd3 {[%emt 0:00:46]} Ke7 {[%emt 0:00:
00]} 77. Rc6 {[%emt 0:00:18]} Kd7 {[%emt 0:00:48]} 78. Rc4 {[%emt 0:00:16]}
Rg3+ {[%emt 0:00:32]} 79. Ke2 {[%emt 0:00:12]} Rxg6 {[%emt 0:01:56]} 80. hxg6 {
[%emt 0:00:05]} Ke6 {[%emt 0:00:04]} 81. Kf3 {[%emt 0:02:00]} Kf5 {[%emt 0:00:
00]} 82. Rc5 {[%emt 0:00:20]} h5 {[%emt 0:00:09]} 83. Kg2 {[%emt 0:01:22]} Ke4
{[%emt 0:00:32]} 84. Kf1 {[%emt 0:00:22]} h4 {[%emt 0:00:13]} 85. Rd5 {[%emt 0:
00:00]} 0-1

[Event "44th Chess Olympiad Open 2022"]
[Site "Chennai"]
[Date "2022.07.31"]
[Round "3.22"]
[White "Lorenzana, Wilson Estuardo"]
[Black "Markus, Robert"]
[Result "0-1"]
[WhiteElo "2182"]
[BlackElo "2616"]
[Annotator "RC"]
[PlyCount "100"]
[EventDate "2022.??.??"]
[TimeControl "60"]

1. e4 {[%emt 0:01:06]} e6 {[%emt 0:00:06]} 2. d4 {[%emt 0:01:01]} d5 {[%emt 0:
00:00]} 3. Nc3 {[%emt 0:00:54]} dxe4 {[%emt 0:00:07]} 4. Nxe4 {[%emt 0:00:06]}
Bd7 {[%emt 0:00:05]} 5. Nf3 {[%emt 0:00:36]} Bc6 {[%emt 0:00:06]} 6. Bd3 {
[%emt 0:00:09]} Nd7 {[%emt 0:00:07]} 7. O-O {[%emt 0:00:48]} Ngf6 {[%emt 0:00:
00]} 8. Ned2 {[%emt 0:00:18]} Be7 {[%emt 0:00:51]} 9. Re1 {[%emt 0:02:43]} O-O
{[%emt 0:00:38]} 10. c4 {[%emt 0:09:05]} b6 {[%emt 0:01:55]} 11. Qe2 {[%emt 0:
00:00]} Bb7 {[%emt 0:06:22]} 12. a3 {[%emt 0:05:01]} Re8 {[%emt 0:16:51]} 13.
b3 {[%emt 0:13:49]} c5 {[%emt 0:02:20]} 14. Bb2 {[%emt 0:00:16]} Qc7 {[%emt 0:
00:00]} 15. Ne5 {[%emt 0:03:53]} cxd4 {[%emt 0:05:25]} 16. Bxd4 {[%emt 0:00:46]
} Rad8 {[%emt 0:02:54]} 17. Ndf3 {[%emt 0:08:24]} Nxe5 {[%emt 0:07:12]} 18.
Bxe5 {[%emt 0:00:30]} Qc6 {[%emt 0:00:07]} 19. b4 {[%emt 0:02:27]} Nd7 {
[%emt 0:10:39]} 20. Bb2 {[%emt 0:03:27]} Qc7 {[%emt 0:05:26]} 21. Be4 {[%emt 0:
00:00]} a5 {[%emt 0:03:30]} 22. Bxb7 {[%emt 0:03:01]} Qxb7 {[%emt 0:00:15]} 23.
Bc3 {[%emt 0:00:05]} axb4 {[%emt 0:02:31]} 24. axb4 {[%emt 0:00:09]} Nf8 {
[%emt 0:03:50]} 25. Qb2 {[%emt 0:01:39]} f6 {[%emt 0:00:31]} 26. Nd4 {[%emt 0:
00:00]} e5 {[%emt 0:01:23]} 27. Nb5 {[%emt 0:00:06]} Ne6 {[%emt 0:01:35]} 28.
Bd2 {[%emt 0:02:12]} Qc6 {[%emt 0:04:22]} 29. Rac1 {[%emt 0:01:06]} Rd3 {
[%emt 0:02:32]} 30. Be3 {[%emt 0:00:22]} Red8 {[%emt 0:00:05]} 31. h3 {[%emt 0:
00:00]} R8d7 {[%emt 0:05:25]} 32. Qb1 {[%emt 0:00:40]} e4 {[%emt 0:01:29]} 33.
Nc3 {[%emt 0:04:49]} Qxc4 {[%emt 0:01:46]} 34. Na4 {[%emt 0:00:08]} Qxb4 {
[%emt 0:00:26]} 35. Nxb6 {[%emt 0:01:30]} Qxb1 {[%emt 0:00:53]} 36. Rxb1 {
[%emt 0:00:05]} Rd8 {[%emt 0:01:32]} 37. g3 {[%emt 0:04:01]} f5 {[%emt 0:02:55]
} 38. Rb5 {[%emt 0:00:41]} g6 {[%emt 0:00:27]} 39. h4 {[%emt 0:00:54]} Bf6 {
[%emt 0:04:13]} 40. Nc4 {[%emt 0:03:01]} Nd4 {[%emt 0:03:54]} 41. Bxd4 {
[%emt 0:31:11]} Bxd4 {[%emt 0:30:07]} 42. Ne3 {[%emt 0:00:00]} Kg7 {[%emt 0:00:
00]} 43. Nf1 {[%emt 0:00:00]} Rc8 {[%emt 0:00:00]} 44. Re2 {[%emt 0:00:00]} Rc1
{[%emt 0:00:00]} 45. Kg2 {[%emt 0:00:00]} Rdd1 {[%emt 0:00:00]} 46. Rb7+ {
[%emt 0:00:00]} Kf6 {[%emt 0:00:00]} 47. Nh2 {[%emt 0:00:00]} Rg1+ {[%emt 0:00:
00]} 48. Kh3 {[%emt 0:00:00]} Rc3 {[%emt 0:00:00]} 49. Ra2 {[%emt 0:00:00]}
Bxf2 {[%emt 0:00:00]} 50. Ra6+ {[%emt 0:00:00]} Ke5 {[%emt 0:00:00]} 0-1

[Event "44th Chess Olympiad Open 2022"]
[Site "Chennai"]
[Date "2022.07.31"]
[Round "3.23"]
[White "Pechac, Jergus"]
[Black "Khusenkhojaev, Muhammad"]
[Result "1-0"]
[WhiteElo "2594"]
[BlackElo "2397"]
[Annotator "RC"]
[PlyCount "59"]
[EventDate "2022.??.??"]
[TimeControl "60"]

1. Nf3 {[%emt 0:00:03]} Nf6 {[%emt 0:01:56]} 2. c4 {[%emt 0:00:06]} g6 {
[%emt 0:00:20]} 3. Nc3 {[%emt 0:00:07]} d5 {[%emt 0:00:04]} 4. cxd5 {[%emt 0:
00:00]} Nxd5 {[%emt 0:00:04]} 5. h4 {[%emt 0:00:07]} Bg7 {[%emt 0:02:01]} 6. h5
{[%emt 0:00:08]} Nc6 {[%emt 0:01:20]} 7. d4 {[%emt 0:00:16]} Nb6 {[%emt 0:00:
00]} 8. e3 {[%emt 0:00:39]} O-O {[%emt 0:00:18]} 9. Be2 {[%emt 0:00:24]} e5 {
[%emt 0:09:26]} 10. h6 {[%emt 0:06:26]} Bf6 {[%emt 0:12:05]} 11. d5 {[%emt 0:
00:00]} Nb8 {[%emt 0:05:47]} 12. e4 {[%emt 0:10:06]} c6 {[%emt 0:04:27]} 13.
Be3 {[%emt 0:01:31]} cxd5 {[%emt 0:00:48]} 14. exd5 {[%emt 0:00:47]} Bf5 {
[%emt 0:00:42]} 15. Rc1 {[%emt 0:01:46]} Na6 {[%emt 0:05:29]} 16. O-O {[%emt 0:
00:00]} Rc8 {[%emt 0:05:54]} 17. Qb3 {[%emt 0:03:54]} Nc5 {[%emt 0:09:38]} 18.
Qb5 {[%emt 0:00:20]} Ne4 {[%emt 0:02:05]} 19. Rfd1 {[%emt 0:13:06]} Nd6 {
[%emt 0:07:42]} 20. Qb4 {[%emt 0:00:08]} Ndc4 {[%emt 0:03:25]} 21. Bc5 {
[%emt 0:03:13]} Nxb2 {[%emt 0:09:31]} 22. Rd2 {[%emt 0:00:08]} e4 {[%emt 0:00:
00]} 23. Nd4 {[%emt 0:19:48]} Bg5 {[%emt 0:05:19]} 24. Nxf5 {[%emt 0:02:12]}
gxf5 {[%emt 0:00:55]} 25. Bxf8 {[%emt 0:01:28]} Bxd2 {[%emt 0:01:10]} 26. Be7 {
[%emt 0:04:51]} Qc7 {[%emt 0:02:21]} 27. d6 {[%emt 0:04:33]} Bxc3 {[%emt 0:00:
00]} 28. Qb3 {[%emt 0:01:04]} Qc6 {[%emt 0:00:41]} 29. Bb5 {[%emt 0:00:12]} Qd5
{[%emt 0:00:30]} 30. Rxc3 {[%emt 0:01:39]} 1-0

[Event "44th Chess Olympiad Open 2022"]
[Site "Chennai"]
[Date "2022.07.31"]
[Round "3.23"]
[White "Druska, Juraj"]
[Black "Khusenkhojaev, Mustafokhuja"]
[Result "1-0"]
[WhiteElo "2519"]
[BlackElo "2238"]
[Annotator "RC"]
[PlyCount "47"]
[EventDate "2022.??.??"]
[TimeControl "60"]

1. Nf3 {[%emt 0:00:04]} Nf6 {[%emt 0:00:12]} 2. c4 {[%emt 0:00:12]} g6 {
[%emt 0:00:16]} 3. Nc3 {[%emt 0:00:10]} d5 {[%emt 0:00:13]} 4. cxd5 {[%emt 0:
00:00]} Nxd5 {[%emt 0:00:11]} 5. h4 {[%emt 0:00:06]} Bg7 {[%emt 0:01:58]} 6. h5
{[%emt 0:00:09]} Nc6 {[%emt 0:00:51]} 7. g3 {[%emt 0:00:10]} Bf5 {[%emt 0:00:
00]} 8. Bg2 {[%emt 0:00:39]} Ncb4 {[%emt 0:05:00]} 9. Nxd5 {[%emt 0:00:39]}
Nc2+ {[%emt 0:08:36]} 10. Kf1 {[%emt 0:01:53]} Qxd5 {[%emt 0:01:54]} 11. Nh4 {
[%emt 0:00:19]} Be4 {[%emt 0:11:16]} 12. Qxc2 {[%emt 0:00:22]} Bxg2+ {[%emt 0:
00:00]} 13. Nxg2 {[%emt 0:00:10]} O-O-O {[%emt 0:00:42]} 14. d3 {[%emt 0:03:27]
} Kb8 {[%emt 0:00:34]} 15. Qb3 {[%emt 0:03:15]} Qxb3 {[%emt 0:01:28]} 16. axb3
{[%emt 0:00:11]} Rd5 {[%emt 0:04:44]} 17. hxg6 {[%emt 0:04:38]} hxg6 {[%emt 0:
00:00]} 18. Rxh8+ {[%emt 0:00:08]} Bxh8 {[%emt 0:00:00]} 19. Ra4 {[%emt 0:00:
00]} Rb5 {[%emt 0:04:39]} 20. Re4 {[%emt 0:00:25]} Bf6 {[%emt 0:02:14]} 21. b4
{[%emt 0:02:53]} c6 {[%emt 0:01:42]} 22. Ne3 {[%emt 0:00:47]} e5 {[%emt 0:00:
00]} 23. Ng4 {[%emt 0:04:54]} Bg7 {[%emt 0:01:34]} 24. Nxe5 {[%emt 0:00:35]}
1-0

[Event "44th Chess Olympiad Open 2022"]
[Site "Chennai"]
[Date "2022.07.31"]
[Round "3.23"]
[White "Karimov, Alisher"]
[Black "Gazik, Viktor"]
[Result "1/2-1/2"]
[WhiteElo "2234"]
[BlackElo "2544"]
[Annotator "RC"]
[PlyCount "72"]
[EventDate "2022.??.??"]
[TimeControl "60"]

1. d4 {[%emt 0:00:04]} Nf6 {[%emt 0:00:04]} 2. c4 {[%emt 0:00:17]} e6 {[%emt 0:
00:00]} 3. g3 {[%emt 0:00:46]} c5 {[%emt 0:00:08]} 4. d5 {[%emt 0:01:12]} exd5
{[%emt 0:00:08]} 5. cxd5 {[%emt 0:00:05]} d6 {[%emt 0:00:08]} 6. Nc3 {[%emt 0:
00:00]} g6 {[%emt 0:00:06]} 7. Bg2 {[%emt 0:00:16]} Bg7 {[%emt 0:00:05]} 8. Nf3
{[%emt 0:00:13]} O-O {[%emt 0:00:09]} 9. O-O {[%emt 0:00:14]} Na6 {[%emt 0:00:
00]} 10. Bf4 {[%emt 0:09:44]} Nh5 {[%emt 0:13:32]} 11. Bg5 {[%emt 0:03:03]} f6
{[%emt 0:00:12]} 12. Bd2 {[%emt 0:07:22]} f5 {[%emt 0:05:46]} 13. Qc1 {[%emt 0:
00:00]} Bd7 {[%emt 0:27:26]} 14. e4 {[%emt 0:12:33]} f4 {[%emt 0:08:46]} 15.
Ne2 {[%emt 0:15:02]} fxg3 {[%emt 0:17:52]} 16. Nxg3 {[%emt 0:04:17]} Nxg3 {
[%emt 0:08:00]} 17. hxg3 {[%emt 0:00:21]} Qe7 {[%emt 0:02:58]} 18. Bc3 {
[%emt 0:13:22]} Bxc3 {[%emt 0:03:14]} 19. Qxc3 {[%emt 0:06:52]} Qxe4 {[%emt 0:
00:00]} 20. Rae1 {[%emt 0:01:43]} Qb4 {[%emt 0:03:36]} 21. Re7 {[%emt 0:01:05]}
Qxc3 {[%emt 0:01:35]} 22. bxc3 {[%emt 0:00:02]} Rf7 {[%emt 0:00:16]} 23. Rxf7 {
[%emt 0:03:52]} Kxf7 {[%emt 0:00:01]} 24. Ng5+ {[%emt 0:00:06]} Kf8 {[%emt 0:
00:00]} 25. Ne4 {[%emt 0:03:14]} Re8 {[%emt 0:00:36]} 26. Nxd6 {[%emt 0:01:45]}
Re2 {[%emt 0:00:02]} 27. Nxb7 {[%emt 0:01:33]} Rxa2 {[%emt 0:00:02]} 28. Re1 {
[%emt 0:02:37]} Rb2 {[%emt 0:01:17]} 29. d6 {[%emt 0:00:49]} Rb6 {[%emt 0:00:
00]} 30. Rd1 {[%emt 0:01:56]} Ke8 {[%emt 0:01:06]} 31. Re1+ {[%emt 0:01:14]}
Kf8 {[%emt 0:00:01]} 32. Rd1 {[%emt 0:00:44]} Ke8 {[%emt 0:00:01]} 33. Rd5 {
[%emt 0:00:36]} Be6 {[%emt 0:01:16]} 34. Rd1 {[%emt 0:02:38]} Kf8 {[%emt 0:00:
00]} 35. Re1 {[%emt 0:00:52]} Bd7 36. Rf1 {[%emt 0:00:03]} Rb2 {[%emt 0:00:11]}
1/2-1/2

[Event "44th Chess Olympiad Open 2022"]
[Site "Chennai"]
[Date "2022.07.31"]
[Round "3.23"]
[White "Ilkhomi, Jaloliddin"]
[Black "Repka, Christopher"]
[Result "0-1"]
[WhiteElo "2076"]
[BlackElo "2516"]
[Annotator "RC"]
[PlyCount "78"]
[EventDate "2022.??.??"]
[TimeControl "60"]

1. d4 {[%emt 0:00:05]} d5 {[%emt 0:00:17]} 2. Bf4 {[%emt 0:00:16]} c5 {[%emt 0:
00:00]} 3. e3 {[%emt 0:00:47]} Nc6 {[%emt 0:00:46]} 4. c3 {[%emt 0:00:25]} Qb6
{[%emt 0:00:51]} 5. Qb3 {[%emt 0:01:01]} c4 {[%emt 0:00:29]} 6. Qc2 {[%emt 0:
00:00]} e5 {[%emt 0:00:53]} 7. dxe5 {[%emt 0:02:55]} Bf5 {[%emt 0:00:11]} 8.
Qd2 {[%emt 0:06:17]} g5 {[%emt 0:04:42]} 9. Bxg5 {[%emt 0:12:34]} Nxe5 {
[%emt 0:00:11]} 10. Qd4 {[%emt 0:02:35]} Qe6 {[%emt 0:14:36]} 11. Nf3 {[%emt 0:
00:00]} Bg7 {[%emt 0:02:23]} 12. Nxe5 {[%emt 0:01:04]} Bxe5 {[%emt 0:00:05]}
13. Qd1 {[%emt 0:04:45]} f6 {[%emt 0:14:17]} 14. Bh4 {[%emt 0:03:22]} Ne7 {
[%emt 0:00:05]} 15. Bg3 {[%emt 0:02:53]} h5 {[%emt 0:00:43]} 16. Nd2 {[%emt 0:
00:00]} O-O-O {[%emt 0:01:35]} 17. Bxe5 {[%emt 0:04:18]} fxe5 {[%emt 0:00:04]}
18. b3 {[%emt 0:00:11]} h4 {[%emt 0:06:07]} 19. Be2 {[%emt 0:12:35]} Rhg8 {
[%emt 0:09:22]} 20. Nf3 {[%emt 0:01:35]} Be4 {[%emt 0:05:40]} 21. bxc4 {
[%emt 0:02:56]} Qf6 {[%emt 0:05:17]} 22. Rf1 {[%emt 0:09:15]} Kb8 {[%emt 0:00:
00]} 23. cxd5 {[%emt 0:04:30]} Nxd5 {[%emt 0:00:56]} 24. Qb3 {[%emt 0:00:16]}
h3 {[%emt 0:00:12]} 25. Nd2 {[%emt 0:01:49]} Bxg2 {[%emt 0:00:55]} 26. Rg1 {
[%emt 0:01:20]} Rgf8 {[%emt 0:03:09]} 27. O-O-O {[%emt 0:04:57]} Qxf2 {[%emt 0:
00:00]} 28. Rde1 {[%emt 0:07:00]} Qxe3 {[%emt 0:00:42]} 29. Bf3 {[%emt 0:00:32]
} Qxc3+ {[%emt 0:04:29]} 30. Qxc3 {[%emt 0:00:04]} Nxc3 {[%emt 0:00:06]} 31.
Bxg2 {[%emt 0:00:50]} Nxa2+ {[%emt 0:00:21]} 32. Kb1 {[%emt 0:00:34]} Rxd2 {
[%emt 0:00:48]} 33. Bxh3 {[%emt 0:00:14]} Nc3+ {[%emt 0:00:32]} 34. Kc1 {
[%emt 0:00:01]} Rxh2 {[%emt 0:01:02]} 35. Bg4 {[%emt 0:00:57]} Rff2 {[%emt 0:
00:00]} 36. Bd1 {[%emt 0:00:20]} Ra2 {[%emt 0:00:16]} 37. Rg8+ {[%emt 0:00:13]}
Kc7 {[%emt 0:00:07]} 38. Rg7+ {[%emt 0:00:06]} Kd6 {[%emt 0:00:05]} 39. Rg6+ {
[%emt 0:00:20]} Kc5 {[%emt 0:00:09]} 0-1

[Event "44th Chess Olympiad Open 2022"]
[Site "Chennai"]
[Date "2022.07.31"]
[Round "3.24"]
[White "Saric, Ivan"]
[Black "Lim, Zhuo Ren"]
[Result "1/2-1/2"]
[WhiteElo "2680"]
[BlackElo "2318"]
[Annotator "TA"]
[PlyCount "74"]
[EventDate "2022.??.??"]
[TimeControl "60"]

{[%evp 19,74,6,12,4,14,0,26,0,0,0,5,14,14,4,0,0,0,0,0,-8,-2,-2,0,0,0,0,0,-2,13,
0,0,-36,0,0,0,0,0,-62,-28,-33,173,-175,-71,-51,0,0,0,0,0,0,0,0,0,0,0,0,0]} 1.
e4 {[%emt 0:00:01]} c5 {[%emt 0:00:08]} 2. Nf3 {[%emt 0:00:05]} Nc6 {[%emt 0:
00:00]} 3. Bb5 {[%emt 0:01:58]} g6 {[%emt 0:00:19]} 4. O-O {[%emt 0:00:18]} Bg7
{[%emt 0:00:55]} 5. c3 {[%emt 0:00:16]} Nf6 {[%emt 0:00:42]} 6. Re1 {[%emt 0:
00:00]} O-O {[%emt 0:00:40]} 7. h3 {[%emt 0:01:28]} e5 {[%emt 0:02:45]} 8. d3 {
[%emt 0:01:13]} d6 {[%emt 0:00:52]} 9. Nbd2 {[%emt 0:00:40]} a6 {[%emt 0:00:56]
} 10. Bxc6 {[%emt 0:01:54]} bxc6 {[%emt 0:00:04]} 11. Qa4 {[%emt 0:01:53] B31:
Sicilian: 2...Nc6 3 Bb5 g6.} Qc7 {[%emt 0:02:17]} 12. Nc4 {[%emt 0:00:19]} a5 {
[%emt 0:11:23] [#]} 13. d4 $146 {[%emt 0:20:39] White has an edge.} (13. b4 {
is more complex.} cxb4 14. cxb4 Bd7 15. bxa5 d5 16. Ncxe5 Rxa5 17. Qd1) ({
Predecessor:} 13. b4 cxb4 14. cxb4 Ba6 15. bxa5 Bxc4 16. Qxc4 Rxa5 17. a4 Rfa8
18. Bd2 R5a6 19. a5 {1-0 (39) Kholmov,R (2427)-Salai,L (2418) Olomouc 2001})
13... cxd4 {[%emt 0:06:16]} 14. cxd4 {[%emt 0:00:10]} Nxe4 {[%emt 0:01:53]} 15.
Rxe4 {[%emt 0:00:24] Hoping for Re2.} d5 {[%emt 0:00:12][%csl Yc4,Ye4] [#]} 16.
Rxe5 {[%emt 0:05:41][%cal Yc4d2] And now Ncd2! would win.} dxc4 {[%emt 0:00:00]
} 17. Qxc4 {[%emt 0:08:04]} Be6 {[%emt 0:10:05]} 18. Rxe6 {[%emt 0:09:41]} fxe6
{[%emt 0:00:02]} 19. Be3 {[%emt 0:02:33]} Qd7 {[%emt 0:04:49]} 20. Rc1 {
[%emt 0:00:06]} Rac8 {[%emt 0:00:55]} 21. Ng5 {[%emt 0:02:16]} Rfe8 {[%emt 0:
00:00]} 22. b3 {[%emt 0:03:15]} Qd5 {[%emt 0:01:46]} 23. Qa6 {[%emt 0:01:02]}
Qd7 {[%emt 0:11:32]} 24. Rc4 {[%emt 0:14:48]} e5 {[%emt 0:09:34]} 25. dxe5 {
[%emt 0:02:20]} (25. Rc5 $5 {[%cal Ra6c4]} exd4 26. Qc4+ Kh8 27. Nf7+ Kg8 28.
Ng5+ Kh8 29. Nf7+ Kg8 30. Ng5+ $11) 25... Qd1+ {[%emt 0:02:34]} 26. Kh2 {
[%emt 0:00:04]} Bxe5+ {[%emt 0:00:06]} 27. f4 {[%emt 0:01:04]} Qd3 {[%emt 0:00:
00]} 28. Bc1 {[%emt 0:06:31]} (28. fxe5 $11 Qxe3 29. Nf3) 28... Bg7 {[%emt 0:
00:00]} 29. Qa7 {[%emt 0:03:52][%cal Yc1b2] White wants to mate with Bb2!} Re2
{[%emt 0:03:16] [#] Against Bb2} (29... Qf5 $1 $15 {stays ahead.}) 30. Qf7+ $2
{[%emt 0:06:07]} ({Weaker is} 30. Qb7 Rce8 31. Qxc6 h6 $17) (30. Re4 $1 $18 Qc2
(30... Kh8 31. Qb7) 31. Rxe2 Qxe2 32. Qf7+ Kh8 33. Ne6) 30... Kh8 $17 {[%emt 0:
00:02] ...Rce8 is the strong threat.} 31. Qb7 {[%emt 0:00:12][%csl Yc6,Yc8]}
Rxg2+ {[%emt 0:06:28]} 32. Kxg2 $11 {[%emt 0:00:04] Really sharp! The position
is equal.} Qe2+ {[%emt 0:00:04]} 33. Kg3 {[%emt 0:01:09]} Qe1+ {[%emt 0:00:13]}
34. Kf3 {[%emt 0:00:47]} Qf1+ {[%emt 0:00:27]} 35. Kg3 {[%emt 0:03:49]} Qg1+ {
[%emt 0:00:13]} 36. Kf3 {[%emt 0:00:04]} Qf1+ {[%emt 0:00:00]} 37. Kg3 {
[%emt 0:00:04]} Qg1+ {[%emt 0:00:05] Weighted Error Value: White=0.23 (precise)
/Black=0.16 (very precise)} 1/2-1/2

[Event "44th Chess Olympiad Open 2022"]
[Site "Chennai"]
[Date "2022.07.31"]
[Round "3.24"]
[White "Kozul, Zdenko"]
[Black "Tan, Jun Ying"]
[Result "1-0"]
[WhiteElo "2602"]
[BlackElo "2191"]
[Annotator "RC"]
[PlyCount "87"]
[EventDate "2022.??.??"]
[TimeControl "60"]

1. d4 {[%emt 0:00:09]} Nf6 {[%emt 0:00:19]} 2. Nf3 {[%emt 0:00:16]} e6 {
[%emt 0:00:13]} 3. c4 {[%emt 0:00:29]} c5 {[%emt 0:00:06]} 4. d5 {[%emt 0:00:
00]} exd5 {[%emt 0:00:05]} 5. cxd5 {[%emt 0:00:09]} d6 {[%emt 0:00:05]} 6. h3 {
[%emt 0:02:29]} g6 {[%emt 0:01:11]} 7. e4 {[%emt 0:00:10]} Bg7 {[%emt 0:01:27]}
8. Bd3 {[%emt 0:00:15]} O-O {[%emt 0:00:24]} 9. O-O {[%emt 0:00:56]} a6 {
[%emt 0:18:55]} 10. Re1 {[%emt 0:04:45]} Re8 {[%emt 0:06:38]} 11. a4 {[%emt 0:
00:00]} c4 {[%emt 0:01:45]} 12. Bc2 {[%emt 0:00:55]} Nbd7 {[%emt 0:00:51]} 13.
Nc3 {[%emt 0:00:37]} Nc5 {[%emt 0:02:09]} 14. Nd2 {[%emt 0:24:15]} Qc7 {
[%emt 0:08:35]} 15. Nxc4 {[%emt 0:13:14]} Ncxe4 {[%emt 0:03:50]} 16. Nxe4 {
[%emt 0:00:45]} Nxe4 {[%emt 0:00:21]} 17. Bxe4 {[%emt 0:00:09]} Qxc4 {[%emt 0:
00:00]} 18. Bd3 {[%emt 0:00:09]} Rxe1+ {[%emt 0:00:40]} 19. Qxe1 {[%emt 0:00:
00]} Qh4 {[%emt 0:08:31]} 20. Qe8+ {[%emt 0:00:14]} Bf8 {[%emt 0:00:08]} 21.
Bd2 {[%emt 0:00:19]} Qe7 {[%emt 0:27:18]} 22. Re1 {[%emt 0:01:10]} Qxe8 {
[%emt 0:00:40]} 23. Rxe8 {[%emt 0:00:10]} Kg7 {[%emt 0:01:10]} 24. a5 {[%emt 0:
00:00]} f5 {[%emt 0:04:38]} 25. Bh6+ {[%emt 0:05:03]} Kxh6 {[%emt 0:00:06]} 26.
Rxf8 {[%emt 0:00:04]} Kg7 {[%emt 0:00:33]} 27. Rd8 {[%emt 0:00:13]} Kf6 {
[%emt 0:01:33]} 28. f4 {[%emt 0:01:09]} Ke7 {[%emt 0:01:57]} 29. Rh8 {[%emt 0:
00:00]} h5 {[%emt 0:01:10]} 30. Bc2 {[%emt 0:02:08]} Kd7 {[%emt 0:03:30]} 31.
Rg8 {[%emt 0:05:21]} Kc7 {[%emt 0:02:52]} 32. Rxg6 {[%emt 0:00:45]} Ra7 {
[%emt 0:01:47]} 33. Rg7+ {[%emt 0:02:47]} Kb8 {[%emt 0:00:29]} 34. Kf2 {
[%emt 0:00:10]} b6 {[%emt 0:00:50]} 35. Rxa7 {[%emt 0:01:22]} Kxa7 {[%emt 0:00:
00]} 36. b4 {[%emt 0:00:09]} bxa5 {[%emt 0:01:02]} 37. bxa5 {[%emt 0:00:08]} h4
{[%emt 0:00:32]} 38. g3 {[%emt 0:00:07]} hxg3+ {[%emt 0:00:51]} 39. Kxg3 {
[%emt 0:00:08]} Bd7 {[%emt 0:00:33]} 40. h4 {[%emt 0:00:46]} Be8 {[%emt 0:00:
00]} 41. Bxf5 {[%emt 0:30:09]} Kb7 {[%emt 0:30:15]} 42. Kg4 {[%emt 0:00:12]}
Bf7 {[%emt 0:00:00]} 43. Be4 {[%emt 0:00:00]} Kc7 {[%emt 0:00:00]} 44. h5 {
[%emt 0:00:00]} 1-0